bitfinex/quotes_SOLUSD_20250522
["timestamp","ask_amount","ask_price","bid_price","bid_amount"]
[1747922855980,5.61545372,178.08,178.04,33.66]
[1747922856179,5.61545372,178.08,178.05,80.06]
[1747922856473,5.61450788,178.11,178.05,80.06]
[1747922856674,5.61367518,178.14,178.08,26.0]
[1747922856981,5.61293219,178.16,178.09,33.66]
[1747922857298,5.61293219,178.16,178.12,26.0]
[1747922857497,5.61293219,178.16,178.13,80.06]
[1747922857704,30.04527074,178.19,178.13,80.06]
[1747922857705,5.6119872,178.19,178.13,80.06]
[1747922858076,30.04527074,178.18,178.13,80.06]
[1747922858396,5.6119872,178.19,178.13,80.06]
[1747922859181,35.65725794,178.19,178.13,80.06]
[1747922859382,30.04527074,178.16,178.13,80.06]
[1747922859591,30.04527074,178.15,178.13,80.06]
[1747922860100,35.6588331,178.14,178.12,46.38]
[1747922860305,30.04527074,178.13,178.1,210.08]
[1747922860505,30.04527074,178.11,178.1,210.08]
[1747922862208,5.61450788,178.11,178.1,210.08]
[1747922863305,5.61424201,178.12,178.1,210.08]
[1747922863480,5.61424201,178.12,178.11,33.66]
[1747922864107,5.6138775,178.13,178.11,33.66]
[1747922864510,35.65914824,178.13,178.11,33.66]
[1747922864883,5.6138775,178.13,178.11,33.66]
[1747922867308,5.61261716,178.17,178.11,33.66]
[1747922867494,30.04527074,178.16,178.11,33.66]
[1747922868190,35.658518,178.15,178.11,33.66]
[1747922868505,30.04527074,178.14,178.11,33.66]
[1747922868888,30.04527074,178.13,178.11,33.66]
[1747922869588,49.69163615,178.15,178.11,33.66]
[1747922869922,30.04527074,178.14,178.11,33.66]
[1747922870104,19.64636541,178.15,178.11,33.66]
[1747922870290,5.6138775,178.13,178.11,33.66]
[1747922871813,5.61365379,178.14,178.11,33.66]
[1747922872715,19.64350611,178.18,178.11,33.66]
[1747922872914,30.04527074,178.16,178.11,33.66]
[1747922874099,30.04527074,178.14,178.11,33.66]
[1747922874295,30.04527074,178.14,178.12,46.38]
[1747922875012,35.65914824,178.13,178.1,210.08]
[1747922875310,30.04527074,178.11,178.1,210.08]
[1747922875618,5.6138775,178.13,178.1,210.08]
[1747922875619,30.04527074,178.12,178.1,210.08]
[1747922875807,5.6138775,178.13,178.1,210.08]
[1747922876003,30.04527074,178.12,178.1,210.08]
[1747922876725,5.6138775,178.13,178.11,33.66]
[1747922878706,5.61365843,178.14,178.11,33.66]
[1747922879305,5.61324726,178.15,178.11,33.66]
[1747922879714,5.61302969,178.16,178.11,33.66]
[1747922882626,30.04527074,178.15,178.11,33.66]
[1747922882810,49.69063091,178.16,178.11,33.66]
[1747922883124,5.61302969,178.16,178.11,33.66]
[1747922883328,5.61261716,178.17,178.12,46.48]
[1747922883826,35.6578879,178.17,178.12,46.48]
[1747922884004,5.61261716,178.17,178.12,46.48]
[1747922887729,30.04527074,178.16,178.12,46.48]
[1747922888029,36.29597074,178.13,178.04,210.04]
[1747922888198,36.29597074,178.13,178.0,9.46905841]
[1747922888199,30.04527074,178.06,178.03,46.48]
[1747922888604,20.24084886,178.12,178.03,46.48]
[1747922888803,4.18170608,178.11,178.03,46.48]
[1747922888999,30.04527074,178.08,178.03,46.48]
[1747922889618,30.04527074,178.07,178.03,46.48]
[1747922889827,5.61608446,178.06,178.03,46.48]
[1747922890229,5.61583174,178.07,178.03,46.48]
[1747922892451,5.61555101,178.08,178.03,46.48]
[1747922892913,5.61555101,178.08,178.04,26.0]
[1747922893639,5.61555101,178.08,178.06,26.0]
[1747922893819,5.61555101,178.08,178.07,33.66]
[1747922894013,5.61513841,178.09,178.07,33.66]
[1747922894825,35.66040915,178.09,178.07,33.66]
[1747922895623,30.04527074,178.08,178.07,33.66]
[1747922895833,30.04527074,178.08,178.03,46.48]
[1747922896151,5.61639988,178.05,178.03,80.14]
[1747922896453,35.66167062,178.05,178.03,46.48]
[1747922897942,5.61639988,178.05,178.03,46.48]
[1747922898333,35.66167062,178.05,178.03,46.48]
[1747922898736,30.04527074,178.04,178.03,46.48]
[1747922900136,54.31163494,178.04,178.03,46.48]
[1747922900551,18.64964886,178.03,177.98,33.66]
[1747922900726,18.64964886,178.03,177.97,46.5]
[1747922900727,30.04527074,177.99,177.97,46.5]
[1747922901054,30.04527074,178.0,177.97,46.5]
[1747922901255,1.5164,178.03,177.97,46.5]
[1747922901559,26.1386037,178.04,177.97,46.5]
[1747922901758,30.04527074,178.02,177.97,46.5]
[1747922902258,35.66260545,178.03,177.97,46.5]
[1747922903055,30.04527074,178.02,177.97,46.5]
[1747922903761,35.66260545,178.03,177.97,46.5]
[1747922904262,30.04527074,178.02,177.97,46.5]
[1747922904426,5.61766192,178.01,177.97,46.5]
[1747922904634,35.66198608,178.04,177.97,46.5]
[1747922905051,30.04527074,178.03,177.97,46.5]
[1747922905251,35.66198608,178.04,177.97,46.5]
[1747922905946,30.04527074,178.03,177.97,46.5]
[1747922906457,5.61734636,178.02,177.97,46.5]
[1747922906837,30.04527074,178.0,177.97,46.5]
[1747922907040,30.04527074,177.99,177.97,46.5]
[1747922907237,30.04527074,177.99,177.97,80.18]
[1747922907755,19.09034772,177.99,177.97,80.18]
[1747922908159,5.61860883,177.98,177.97,80.18]
[1747922910349,5.61860883,177.98,177.97,85.18]
[1747922910553,5.61766192,178.01,177.97,85.18]
[1747922910731,30.08003896,177.99,177.97,85.18]
[1747922910933,30.08003896,177.98,177.97,51.5]
[1747922911131,48.72968782,177.98,177.97,51.5]
[1747922911334,48.72968782,177.98,177.97,5.0]
[1747922912078,48.87184939,177.98,177.97,5.0]
[1747922912758,80.49045822,177.98,177.97,10.0]
[1747922913772,5.61860883,177.98,177.97,10.0]
[1747922914959,35.69864779,177.98,177.97,10.0]
[1747922915551,5.61860883,177.98,177.97,10.0]
[1747922915759,35.69864779,177.98,177.97,10.0]
[1747922917267,5.61797752,178.0,177.97,43.68]
[1747922917577,5.61797752,178.0,177.97,88.84]
[1747922917739,30.08003896,177.99,177.97,88.84]
[1747922919181,5.61860883,177.98,177.97,88.84]
[1747922919672,5.61860883,177.98,177.97,55.16]
[1747922920976,35.69864779,177.98,177.97,55.16]
[1747922921277,54.34829665,177.98,177.97,10.0]
[1747922921660,5.61860883,177.98,177.97,10.0]
[1747922921848,35.69864779,177.98,177.97,10.0]
[1747922922049,5.61860883,177.98,177.97,10.0]
[1747922922276,35.69864779,177.98,177.97,10.0]
[1747922923280,54.34829665,177.98,177.97,10.0]
[1747922923488,60.69475822,177.98,177.97,10.0]
[1747922923795,62.28885822,177.98,177.97,10.0]
[1747922924660,92.36889718,177.98,177.97,10.0]
[1747922924868,92.36889718,177.98,177.82,216.6298]
[1747922924869,44.64964886,177.94,177.82,210.14]
[1747922925057,30.08003896,177.85,177.83,45.16]
[1747922925258,35.70307089,177.84,177.83,45.16]
[1747922925464,49.76065073,177.84,177.8,10.0]
[1747922925669,30.08003896,177.81,177.8,10.0]
[1747922925891,30.08003896,177.82,177.8,10.0]
[1747922926298,30.08003896,177.81,177.8,10.0]
[1747922926589,30.08003896,177.82,177.8,10.0]
[1747922926884,30.08003896,177.81,177.8,10.0]
[1747922927265,54.35366847,177.81,177.8,10.0]
[1747922927765,5.62398065,177.81,177.8,10.0]
[1747922928084,14.19974141,177.84,177.8,10.0]
[1747922928085,5.62334814,177.83,177.8,10.0]
[1747922928269,30.08003896,177.81,177.8,10.0]
[1747922929517,35.70401961,177.81,177.8,10.0]
[1747922929676,54.35366847,177.81,177.8,10.0]
[1747922930676,5.62398065,177.81,177.8,10.0]
[1747922930983,35.70401961,177.81,177.8,10.0]
[1747922933091,54.35366847,177.81,177.8,10.0]
[1747922933289,54.49583004,177.81,177.8,10.0]
[1747922933793,54.35366847,177.81,177.8,10.0]
[1747922934290,35.70401961,177.81,177.8,10.0]
[1747922935894,54.49583004,177.81,177.8,10.0]
[1747922937901,54.35366847,177.81,177.8,10.0]
[1747922938287,54.49583004,177.81,177.8,10.0]
[1747922940281,18.79181043,177.8,177.71,45.2]
[1747922940499,0.14216157,177.8,177.71,45.2]
[1747922940702,30.08003896,177.76,177.71,45.2]
[1747922940882,30.08003896,177.79,177.72,33.72]
[1747922941195,30.08003896,177.76,177.72,33.72]
[1747922941574,30.08003896,177.77,177.72,33.72]
[1747922941774,30.08003896,177.78,177.72,33.72]
[1747922942306,5.6252461,177.77,177.72,33.72]
[1747922942475,30.08003896,177.73,177.65,44.12]
[1747922942802,30.08003896,177.71,177.66,33.72]
[1747922943209,30.08003896,177.69,177.66,33.72]
[1747922943375,30.08003896,177.68,177.66,33.72]
[1747922943998,30.08003896,177.67,177.63,33.72]
[1747922944206,30.08003896,177.7,177.63,33.72]
[1747922944386,35.7071843,177.71,177.63,33.72]
[1747922945005,5.62714534,177.71,177.63,39.34953232]
[1747922945798,5.62689958,177.72,177.66,26.0]
[1747922946008,5.62689958,177.72,177.67,33.72]
[1747922946177,5.62659607,177.73,177.67,33.72]
[1747922946378,5.62620431,177.74,177.67,39.34834551]
[1747922947685,32.71152436,177.79,177.67,39.34834551]
[1747922947686,30.08003896,177.77,177.67,39.34834551]
[1747922947886,30.08003896,177.77,177.7,26.0]
[1747922948089,30.08003896,177.77,177.71,77.84]
[1747922948297,30.08003896,177.75,177.71,77.84]
[1747922948498,5.62619556,177.74,177.71,77.84]
[1747922949089,35.70623452,177.74,177.71,77.84]
[1747922949586,30.08003896,177.73,177.71,77.84]
[1747922949797,5.62619556,177.74,177.71,77.84]
[1747922950293,35.70623452,177.74,177.71,77.84]
[1747922950489,30.08003896,177.73,177.71,44.12]
[1747922950891,5.62619556,177.74,177.71,44.12]
[1747922951387,5.62556255,177.76,177.71,44.12]
[1747922951799,5.6253351,177.77,177.71,44.12]
[1747922952003,5.6253351,177.77,177.71,49.74711513]
[1747922952196,32.70929222,177.82,177.72,26.0]
[1747922952400,5.62334814,177.83,177.74,26.0]
[1747922952601,14.05458223,177.88,177.78,26.0]
[1747922952786,5.62208354,177.87,177.79,77.86]
[1747922953209,35.7021225,177.87,177.79,77.86]
[1747922953518,5.62208354,177.87,177.79,77.86]
[1747922953895,5.62208354,177.87,177.82,26.0]
[1747922954093,5.62208354,177.87,177.83,33.74]
[1747922954518,5.62176748,177.88,177.83,33.74]
[1747922955429,19.67618618,177.88,177.83,33.74]
[1747922956497,19.67176258,177.92,177.83,33.74]
[1747922956711,30.08003896,177.9,177.83,33.74]
[1747922956916,30.08003896,177.91,177.83,33.74]
[1747922957120,19.67176258,177.92,177.83,33.74]
[1747922957310,49.75180154,177.92,177.83,33.74]
[1747922957799,75.75180154,177.92,177.83,33.74]
[1747922958401,75.75180154,177.92,177.83,35.3637]
[1747922958602,31.62050359,177.92,177.83,35.3637]
[1747922958830,31.62050359,177.92,177.83,40.98695145]
[1747922959309,5.62050359,177.92,177.83,40.98695145]
[1747922959554,5.61924027,177.96,177.84,18.79181043]
[1747922959832,5.61924027,177.96,177.88,0.14216157]
[1747922960001,5.61829316,177.99,177.9,0.14216157]
[1747922960206,5.61766192,178.01,177.93,1.5945]
[1747922960432,5.61766192,178.01,177.94,33.72]
[1747922960605,5.61734636,178.02,177.94,33.72]
[1747922962713,14.04336591,178.02,177.94,33.72]
[1747922962932,14.04336591,178.02,177.94,59.72]
[1747922963133,5.61671534,178.04,177.97,26.0]
[1747922963298,5.61671534,178.04,177.98,44.1]
[1747922963631,5.61671534,178.04,177.99,33.7]
[1747922963828,19.6585037,178.04,177.99,33.7]
[1747922965444,49.73854266,178.04,177.99,33.7]
[1747922965822,30.08003896,178.03,178.0,33.7]
[1747922966927,5.61734636,178.02,178.0,33.7]
[1747922968907,49.73854266,178.04,178.0,33.7]
[1747922970239,30.08003896,178.02,178.0,33.7]
[1747922970412,30.08003896,178.03,178.0,33.7]
[1747922971050,48.72968782,178.01,177.93,33.68]
[1747922971359,18.64964886,178.01,177.93,33.68]
[1747922971512,30.08003896,177.95,177.93,33.68]
[1747922972120,30.08003896,177.96,177.93,33.68]
[1747922972440,30.08003896,177.97,177.93,33.68]
[1747922972743,18.64964886,178.01,177.93,33.68]
[1747922972910,5.61797752,178.0,177.93,33.68]
[1747922973511,5.61797752,178.0,177.96,26.0]
[1747922973713,5.61797752,178.0,177.97,33.68]
[1747922975011,5.61766192,178.01,177.97,33.68]
[1747922976438,5.61766192,178.01,177.98,43.96]
[1747922976638,5.61639988,178.05,177.98,43.96]
[1747922976851,19.65739959,178.05,177.98,43.96]
[1747922977224,14.04099971,178.05,177.98,43.96]
[1747922980034,44.12103867,178.05,177.98,43.96]
[1747922980434,5.61608446,178.06,177.98,43.96]
[1747922980750,49.73633458,178.06,177.98,43.96]
[1747922981173,5.61608446,178.06,177.98,49.57855726]
[1747922981752,5.61608446,178.06,177.98,43.96]
[1747922983450,5.61608446,178.06,177.99,0.14216157]
[1747922984149,5.61513841,178.09,178.01,26.0]
[1747922984326,5.61513841,178.09,178.02,33.68]
[1747922985757,20.38345067,178.11,178.02,33.68]
[1747922985758,5.61482313,178.1,178.02,33.68]
[1747922985961,30.08003896,178.09,178.02,33.68]
[1747922986829,30.08003896,178.08,177.98,0.14216157]
[1747922987038,30.08003896,178.08,177.99,103.62]
[1747922987841,19.65519176,178.07,177.99,103.62]
[1747922989238,49.73523072,178.07,177.99,103.62]
[1747922989439,48.72968782,178.06,178.0,77.62]
[1747922989633,30.08003896,178.05,178.0,77.62]
[1747922989831,35.6967543,178.04,178.0,43.94]
[1747922990131,49.73854266,178.04,178.01,33.68]
[1747922990334,19.6585037,178.04,178.01,33.68]
[1747922990930,49.73854266,178.04,178.01,33.68]
[1747922992364,19.6585037,178.04,178.01,33.68]
[1747922992530,5.61671534,178.04,178.01,33.68]
[1747922994145,35.69580803,178.07,178.01,33.68]
[1747922994348,5.61576907,178.07,178.01,33.68]
[1747922994559,35.69580803,178.07,178.01,33.68]
[1747922994753,5.61576907,178.07,178.01,33.68]
[1747922995146,19.65519176,178.07,178.01,33.68]
[1747922995564,49.73523072,178.07,178.01,33.68]
[1747922997144,30.08003896,178.02,177.95,210.14]
[1747922997347,30.08003896,178.01,177.98,43.94]
[1747922997743,30.08003896,178.01,177.98,77.62]
[1747922998239,5.61797752,178.0,177.98,77.62]
[1747923000960,35.69770088,178.01,177.98,77.62]
[1747923001166,18.64964886,177.99,177.98,43.94]
[1747923001369,0.14216157,177.98,177.89,43.22]
[1747923001547,30.08003896,177.92,177.89,33.68]
[1747923001968,18.64964886,177.95,177.88,43.22]
[1747923001969,30.08003896,177.9,177.88,43.22]
[1747923002147,30.08003896,177.89,177.88,43.22]
[1747923002850,35.70149041,177.89,177.88,43.22]
[1747923003655,54.35113927,177.89,177.88,43.22]
[1747923003844,18.64964886,177.88,177.85,33.68]
[1747923004174,18.64964886,177.88,177.83,76.92]
[1747923004175,30.08003896,177.87,177.83,76.92]
[1747923004868,30.08003896,177.84,177.83,43.24]
[1747923005649,30.08003896,177.85,177.83,43.24]
[1747923006648,30.08003896,177.84,177.83,43.24]
[1747923006848,35.70307089,177.84,177.83,43.24]
[1747923008546,18.64964886,177.83,177.78,43.24]
[1747923008746,30.08003896,177.81,177.78,43.24]
[1747923009074,5.6246133,177.79,177.78,43.24]
[1747923010457,49.76618552,177.79,177.73,210.2]
[1747923010652,30.08003896,177.78,177.74,76.96]
[1747923011169,5.6252461,177.77,177.74,76.96]
[1747923012762,5.6252461,177.77,177.75,33.7]
[1747923014084,2.79801162,177.95,177.75,33.7]
[1747923014085,14.05941358,177.82,177.75,33.7]
[1747923014369,44.13945254,177.82,177.75,33.7]
[1747923014570,5.62398065,177.81,177.75,33.7]
[1747923014969,35.70401961,177.81,177.75,33.7]
[1747923015867,5.62398065,177.81,177.74,43.26]
[1747923016079,5.62398065,177.81,177.75,33.7]
[1747923017256,5.62334814,177.83,177.78,26.0]
[1747923017565,5.62239964,177.86,177.79,33.72]
[1747923017966,5.62209329,177.87,177.82,26.0]
[1747923018159,14.05319676,177.9,177.83,76.98]
[1747923018356,5.62113546,177.9,177.83,76.98]
[1747923019257,5.62050359,177.92,177.86,26.0]
[1747923019474,5.62050359,177.92,177.87,33.72]
[1747923020066,35.70054255,177.92,177.87,33.72]
[1747923020260,5.62050359,177.92,177.87,33.72]
[1747923021585,19.66955152,177.94,177.87,33.72]
[1747923022292,49.74959048,177.94,177.87,33.72]
[1747923022992,19.66955152,177.94,177.87,33.72]
[1747923023188,49.74959048,177.94,177.87,33.72]
[1747923024670,30.08003896,177.92,177.86,26.0]
[1747923024872,30.08003896,177.92,177.87,33.72]
[1747923025687,30.08003896,177.91,177.79,1.6098]
[1747923025890,30.08003896,177.9,177.8,76.96]
[1747923026089,30.08003896,177.89,177.83,26.0]
[1747923026398,30.08003896,177.89,177.81,33.7]
[1747923026699,5.62176748,177.88,177.84,26.0]
[1747923026891,5.62176748,177.88,177.85,33.7]
[1747923027775,30.08003896,177.87,177.84,33.7]
[1747923027993,18.64964886,177.86,177.8,43.26]
[1747923028200,48.72968782,177.86,177.81,33.7]
[1747923028698,5.62271577,177.85,177.81,33.7]
[1747923030299,5.62176748,177.88,177.84,26.0]
[1747923030478,5.62176748,177.88,177.85,33.7]
[1747923031004,68.4041774,177.9,177.85,33.7]
[1747923031481,5.62113546,177.9,177.85,33.7]
[1747923031680,54.35082328,177.9,177.85,33.7]
[1747923031891,30.08003896,177.89,177.85,33.7]
[1747923032100,48.72968782,177.88,177.76,5.62556255]
[1747923032290,30.08003896,177.86,177.77,76.92]
[1747923032490,30.08003896,177.85,177.77,76.92]
[1747923032796,30.08003896,177.84,177.8,26.0]
[1747923033021,5.62303193,177.84,177.8,26.0]
[1747923033222,5.62303193,177.84,177.81,33.7]
[1747923036480,19.68061177,177.84,177.81,33.72]
[1747923036809,5.62303193,177.84,177.81,33.72]
[1747923037105,5.62239964,177.86,177.81,33.72]
[1747923037483,19.67839874,177.86,177.81,33.72]
[1747923038513,19.67839874,177.86,177.77,43.22]
[1747923038514,48.72968782,177.83,177.77,43.22]
[1747923038693,48.72968782,177.83,177.79,33.72]
[1747923039011,30.08003896,177.8,177.77,43.22]
[1747923039306,5.62429696,177.8,177.77,43.22]
[1747923039709,30.08003896,177.78,177.73,210.2]
[1747923039885,30.08003896,177.77,177.73,210.2]
[1747923040090,18.64964886,177.79,177.73,210.2]
[1747923040091,30.08003896,177.78,177.73,210.2]
[1747923040300,48.72968782,177.79,177.73,210.2]
[1747923040901,30.08003896,177.78,177.73,210.2]
[1747923041212,49.76840032,177.77,177.73,210.2]
[1747923041710,19.68836136,177.77,177.73,210.2]
[1747923041923,18.64964886,177.74,177.71,43.24]
[1747923042216,30.08003896,177.73,177.71,43.24]
[1747923042513,48.72968782,177.72,177.71,43.24]
[1747923042885,48.72968782,177.72,177.69,33.72]
[1747923043086,5.62619556,177.74,177.69,33.72]
[1747923045387,5.62556255,177.76,177.69,33.72]
[1747923045615,5.62556255,177.76,177.7,26.0]
[1747923046006,14.06121875,177.8,177.72,26.0]
[1747923046212,14.06121875,177.8,177.73,76.96]
[1747923046397,18.64964886,177.78,177.73,76.96]
[1747923046600,48.72968782,177.78,177.73,76.96]
[1747923047320,18.64964886,177.78,177.73,76.96]
[1747923047497,5.6252461,177.77,177.73,76.96]
[1747923049390,18.64964886,177.76,177.73,76.96]
[1747923049590,5.62587904,177.75,177.73,76.96]
[1747923050898,5.62587904,177.75,177.61,35.3559]
[1747923050899,50.53494939,177.74,177.61,35.3559]
[1747923051207,30.08003896,177.7,177.64,26.0]
[1747923051521,5.62682871,177.72,177.64,26.0]
[1747923051703,18.64964886,177.71,177.64,26.0]
[1747923052231,18.64964886,177.71,177.62,33.72]
[1747923052406,48.72968782,177.71,177.62,33.72]
[1747923052605,30.08003896,177.68,177.59,43.24]
[1747923052803,30.08003896,177.67,177.6,33.72]
[1747923053009,30.08003896,177.67,177.61,26.0]
[1747923053301,18.64964886,177.67,177.61,26.0]
[1747923053504,5.62872903,177.66,177.61,26.0]
[1747923054026,19.70055161,177.66,177.59,43.24]
[1747923054324,19.70055161,177.66,177.6,33.72]
[1747923055229,30.08003896,177.69,177.63,26.0]
[1747923055413,5.62714534,177.71,177.64,33.74]
[1747923055734,35.7071843,177.71,177.64,33.74]
[1747923055891,18.64964886,177.7,177.64,33.74]
[1747923056098,49.77504767,177.71,177.64,33.74]
[1747923056099,18.64964886,177.68,177.65,33.74]
[1747923056319,30.08003896,177.7,177.65,33.74]
[1747923056535,18.64964886,177.7,177.65,33.74]
[1747923057523,5.62777871,177.69,177.65,33.74]
[1747923057830,5.62777871,177.69,177.64,43.26]
[1747923057831,18.64964886,177.68,177.64,43.26]
[1747923058029,18.64964886,177.68,177.66,33.74]
[1747923058194,18.64964886,177.68,177.64,43.26]
[1747923058522,32.71474653,177.75,177.65,59.74]
[1747923059029,18.64964886,177.75,177.65,59.74]
[1747923059206,5.62556255,177.76,177.66,1.5161]
[1747923059402,5.6252461,177.77,177.7,26.0]
[1747923059596,5.6252461,177.77,177.71,76.94]
[1747923060417,5.6246133,177.79,177.71,76.94]
[1747923061125,5.62398065,177.81,177.74,26.0]
[1747923061295,19.68324955,177.82,177.75,33.74]
[1747923061495,5.62366437,177.82,177.75,33.74]
[1747923062221,19.68282531,177.82,177.75,33.74]
[1747923062800,18.64964886,177.81,177.75,33.74]
[1747923063327,48.72968782,177.81,177.75,33.74]
[1747923063506,19.68503936,177.8,177.75,33.74]
[1747923063901,19.68503936,177.8,177.76,33.74]
[1747923063902,44.64964886,177.79,177.76,33.74]
[1747923064124,74.72968782,177.79,177.76,33.74]
[1747923064322,26.0,177.79,177.76,33.74]
[1747923065704,5.62492968,177.78,177.76,33.74]
[1747923066445,0.14216157,177.82,177.76,33.74]
[1747923066446,1.6619,177.86,177.76,33.74]
[1747923066631,5.62303193,177.84,177.76,65.36547318]
[1747923067630,18.64964886,177.85,177.76,59.74]
[1747923068520,5.62239964,177.86,177.79,26.0]
[1747923068707,5.62239964,177.86,177.8,76.92]
[1747923069618,19.67839874,177.86,177.8,76.92]
[1747923069803,48.72968782,177.85,177.8,76.92]
[1747923070223,18.64964886,177.85,177.8,76.92]
[1747923071334,19.67839874,177.86,177.8,76.92]
[1747923071720,5.62239964,177.86,177.8,76.92]
[1747923072027,5.62176748,177.88,177.8,82.5442946]
[1747923072331,5.62176748,177.88,177.8,76.92]
[1747923073103,45.67618618,177.88,177.8,76.92]
[1747923073635,5.62143134,177.9,177.8,83.1671]
[1747923073831,5.62081951,177.91,177.81,0.14216157]
[1747923074929,18.64964886,177.9,177.8,83.1671]
[1747923075135,18.64964886,177.9,177.81,76.9]
[1747923075816,19.67286829,177.91,177.82,26.0]
[1747923077931,14.05204878,177.91,177.82,31.62364491]
[1747923078319,14.05204878,177.91,177.82,26.0]
[1747923078922,14.05204878,177.91,177.84,26.0]
[1747923079418,14.05204878,177.91,177.82,26.0]
[1747923079916,19.67286829,177.91,177.84,26.0]
[1747923080322,19.67286829,177.91,177.85,33.72]
[1747923081340,30.08003896,177.9,177.85,33.72]
[1747923081555,30.08003896,177.89,177.85,33.72]
[1747923081913,47.77696586,177.91,177.81,69.18]
[1747923081914,19.6772924,177.87,177.81,69.18]
[1747923082116,49.75733136,177.87,177.82,33.72]
[1747923082420,49.75733136,177.87,177.82,33.7]
[1747923082635,19.6772924,177.87,177.82,33.7]
[1747923083731,19.5807924,177.87,177.82,33.7]
[1747923085239,5.62018771,177.93,177.85,26.0]
[1747923085440,30.08003896,177.91,177.85,26.0]
[1747923085738,30.08003896,177.86,177.75,1.5719]
[1747923085914,30.08003896,177.85,177.76,76.86]
[1747923086340,30.08003896,177.84,177.76,76.86]
[1747923086643,19.68282531,177.82,177.76,43.16]
[1747923086836,19.68282531,177.82,177.77,59.7]
[1747923087339,5.62366437,177.82,177.77,59.7]
[1747923087942,5.62303193,177.84,177.8,26.0]
[1747923088726,5.62208354,177.87,177.8,26.0]
[1747923089427,5.62208354,177.87,177.81,26.0]
[1747923089632,19.6772924,177.87,177.82,33.72]
[1747923090246,49.75733136,177.87,177.82,33.72]
[1747923090434,30.08003896,177.85,177.82,33.72]
[1747923090743,60.35457513,177.89,177.78,33.72]
[1747923090744,19.68282531,177.82,177.78,33.72]
[1747923090946,30.08003896,177.81,177.78,33.72]
[1747923091348,30.08003896,177.81,177.77,43.08]
[1747923092050,30.08003896,177.78,177.72,43.08]
[1747923092223,30.08003896,177.78,177.73,33.72]
[1747923092835,19.68836136,177.77,177.73,33.72]
[1747923093943,5.6252461,177.77,177.73,33.72]
[1747923094848,5.6246133,177.79,177.73,33.72]
[1747923096537,19.68614656,177.79,177.72,43.08]
[1747923096849,19.68614656,177.79,177.73,33.72]
[1747923097842,49.76618552,177.79,177.73,33.72]
[1747923098051,30.08003896,177.76,177.72,43.08]
[1747923098358,30.08003896,177.73,177.67,43.1]
[1747923098645,19.6939005,177.72,177.68,33.72]
[1747923099231,5.62682871,177.72,177.68,33.72]
[1747923099934,5.62619556,177.74,177.68,39.34805874]
[1747923100352,5.6252461,177.77,177.68,39.34805874]
[1747923101163,5.6252461,177.77,177.68,33.72]
[1747923101164,49.76840032,177.77,177.68,33.72]
[1747923101556,30.08003896,177.76,177.68,33.72]
[1747923101852,30.08003896,177.75,177.68,33.72]
[1747923102058,30.08003896,177.74,177.68,33.72]
[1747923102953,19.69279243,177.73,177.67,43.1]
[1747923103250,30.08003896,177.72,177.67,76.82]
[1747923103444,5.62651212,177.73,177.67,76.82]
[1747923103949,49.77283139,177.73,177.67,76.82]
[1747923104152,30.08003896,177.72,177.67,76.82]
[1747923104322,0.14216157,177.72,177.67,76.82]
[1747923104527,19.69279243,177.73,177.67,76.82]
[1747923104947,49.77283139,177.73,177.67,76.82]
[1747923105148,14.06628031,177.73,177.67,76.82]
[1747923105954,35.705918,177.75,177.67,76.82]
[1747923106254,49.7706156,177.75,177.67,76.82]
[1747923107242,49.7706156,177.75,177.67,43.1]
[1747923107561,49.7706156,177.75,177.68,33.74]
[1747923107735,30.22220053,177.74,177.68,33.74]